bitfinex/quotes_ETHUSD_20230118
["timestamp","ask_amount","ask_price","bid_price","bid_amount"]
[1674019866963,11.06440496,1586.5,1586.4,0.05344774]
[1674019867177,18.02734975,1586.5,1586.4,0.05344774]
[1674019868937,17.36758496,1586.5,1586.4,0.05344774]
[1674019869460,18.02734975,1586.5,1586.4,0.05344774]
[1674019870909,17.36758496,1586.5,1586.4,0.05344774]
[1674019873275,24.56052975,1586.5,1586.4,0.05344774]
[1674019877295,11.06440496,1586.5,1586.4,0.05344774]
[1674019877913,9.41623282,1586.5,1586.4,0.05344774]
[1674019878432,15.71941282,1586.5,1586.4,0.05344774]
[1674019879016,22.68235761,1586.5,1586.4,0.05344774]
[1674019879226,16.37917761,1586.5,1586.4,0.05344774]
[1674019879788,22.68235761,1586.5,1586.4,0.05344774]
[1674019880119,20.92755909,1586.5,1586.4,0.05344774]
[1674019880328,20.33179431,1586.5,1586.4,0.05344774]
[1674019881807,26.63497431,1586.5,1586.4,0.05344774]
[1674019882221,27.2947391,1586.5,1586.4,0.05344774]
[1674019882812,26.0997391,1586.5,1586.4,0.05344774]
[1674019885787,27.6246215,1586.5,1586.4,0.05344774]
[1674019889876,31.94471847,1586.5,1586.4,0.05344774]
[1674019890229,30.95507128,1586.5,1586.4,0.05344774]
[1674019890383,32.14207128,1586.5,1586.4,0.05344774]
[1674019891057,33.13294723,1586.5,1586.4,0.05344774]
[1674019893490,32.14207128,1586.5,1586.4,0.05344774]
[1674019895056,33.13267548,1586.5,1586.4,0.05344774]
[1674019895262,33.79221817,1586.5,1586.4,0.05344774]
[1674019895420,32.4721212,1586.5,1586.4,0.05344774]
[1674019896271,33.79308669,1586.5,1586.4,0.05344774]
[1674019897148,32.1429398,1586.5,1586.4,0.05344774]
[1674019897367,33.79308669,1586.5,1586.4,0.05344774]
[1674019897580,33.79281621,1586.5,1586.4,0.05344774]
[1674019900096,32.14266932,1586.5,1586.4,0.05344774]
[1674019900303,33.79281621,1586.5,1586.4,0.05344774]
[1674019900461,32.4721212,1586.5,1586.4,0.05344774]
[1674019901360,33.79243229,1586.5,1586.4,0.05344774]
[1674019901932,36.2571212,1586.5,1586.4,0.05344774]
[1674019902142,34.60697431,1586.5,1586.4,0.05344774]
[1674019902370,36.25744241,1586.5,1586.4,0.05344774]
[1674019902581,36.59049182,1586.5,1586.4,0.0449375]
[1674019902803,37.78249182,1586.5,1586.4,0.0449375]
[1674019903243,37.78249182,1586.5,1586.4,7.5e-06]
[1674019903454,37.78249182,1586.5,1586.3,0.05427378]
[1674019903669,39.72754805,1586.4,1586.3,0.05427378]
[1674019905239,41.04737801,1586.4,1586.3,0.05427378]
[1674019905768,44.83237801,1586.4,1586.3,0.05427378]
[1674019907875,51.46419691,1586.4,1586.3,0.05427378]
[1674019908084,50.14454805,1586.4,1586.3,0.05427378]
[1674019908715,64.14454805,1586.4,1586.3,0.05427378]
[1674019908924,64.14454805,1586.4,1586.3,0.00027378]
[1674019909810,62.49444193,1586.4,1586.3,0.00027378]
[1674019910612,62.55844194,1586.4,1586.3,0.00027378]
[1674019910859,64.20784132,1586.4,1586.3,0.00027378]
[1674019911853,62.55844194,1586.4,1586.3,0.00027378]
[1674019912547,64.20758968,1586.4,1586.3,0.00027378]
[1674019912907,62.55844194,1586.4,1586.3,0.00027378]
[1674019913174,4.785,1586.3,1586.2,0.06038245]
[1674019913332,37.20095763,1586.3,1586.2,0.06038245]
[1674019913702,37.20095764,1586.3,1586.2,0.06038245]
[1674019913855,38.85002507,1586.3,1586.2,0.06038245]
[1674019914394,37.20095764,1586.3,1586.2,0.06038245]
[1674019915904,38.19033451,1586.3,1586.2,0.06038245]
[1674019916270,37.20095764,1586.3,1586.2,0.06038245]
[1674019916604,38.1903326,1586.3,1586.2,0.06038245]
[1674019917877,36.9953326,1586.3,1586.2,0.06038245]
[1674019918086,37.0593326,1586.3,1586.2,0.06038245]
[1674019919009,36.06995764,1586.3,1586.2,0.06038245]
[1674019919616,38.91402507,1586.3,1586.2,0.06038245]
[1674019920291,37.59477081,1586.3,1586.2,0.06038245]
[1674019920503,38.91435592,1586.3,1586.2,0.06038245]
[1674019921297,37.59477081,1586.3,1586.2,0.06038245]
[1674019921682,38.91466341,1586.3,1586.2,0.06038245]
[1674019922256,37.59477081,1586.3,1586.2,0.06038245]
[1674019922439,38.91461023,1586.3,1586.2,0.06038245]
[1674019922650,38.91460966,1586.3,1586.2,0.06038245]
[1674019923032,37.59477081,1586.3,1586.2,0.06038245]
[1674019923300,38.91495386,1586.3,1586.2,0.06038245]
[1674019923665,37.59477081,1586.3,1586.2,0.06038245]
[1674019924033,25.22068,1586.0,1585.7,9.01616204]
[1674019924192,3.34662407,1585.9,1585.7,9.01616204]
[1674019924393,22.26330407,1585.9,1585.7,9.01616204]
[1674019924608,22.32730408,1585.9,1585.7,9.01616204]
[1674019928236,22.98744918,1585.9,1585.7,9.01616204]
[1674019928546,24.21702704,1585.9,1585.7,9.01616204]
[1674019931449,24.54709959,1585.9,1585.7,9.01616204]
[1674019931664,28.20764127,1585.9,1585.7,9.01616204]
[1674019931872,27.21742362,1585.9,1585.7,9.01616204]
[1674019932084,23.55688194,1585.9,1585.7,9.01616204]
[1674019932422,22.32730408,1585.9,1585.7,9.01616204]
[1674019932610,22.98784576,1585.9,1585.7,9.01616204]
[1674019933806,22.32730408,1585.9,1585.7,9.01616204]
[1674019939057,22.98784576,1585.9,1585.7,9.01616204]
[1674019943276,26.0161691,1585.9,1585.7,9.01616204]
[1674019943891,27.00638675,1585.9,1585.7,9.01616204]
[1674019944123,26.34584507,1585.9,1585.7,9.01616204]
[1674019944317,27.00731404,1585.9,1585.7,9.01616204]
[1674019945136,26.34584507,1585.9,1585.7,9.01616204]
[1674019945602,26.34584507,1585.9,1585.8,0.09732977]
[1674019947102,27.66613527,1585.9,1585.8,0.09732977]
[1674019947421,26.34584507,1585.9,1585.8,0.09732977]
[1674019950434,27.00739612,1585.9,1585.8,0.09732977]
[1674019950661,23.97907278,1585.9,1585.8,0.09732977]
[1674019951812,22.98885513,1585.9,1585.8,0.09732977]
[1674019954122,23.97907278,1585.9,1585.8,0.09732977]
[1674019955265,22.98885513,1585.9,1585.8,0.09732977]
[1674019956324,23.31752173,1585.9,1585.8,0.09732977]
[1674019956555,26.6959562,1585.9,1585.8,0.09732977]
[1674019959190,28.0162464,1585.9,1585.8,0.09732977]
[1674019960039,26.6959562,1585.9,1585.8,0.09732977]
[1674019961495,28.01875679,1585.9,1585.8,0.09732977]
[1674019962309,26.69846659,1585.9,1585.8,0.09732977]
[1674019963909,0.72581751,1585.9,1585.8,0.09732977]
[1674019964225,0.06400001,1585.9,1585.8,13.80434205]
[1674019964440,0.00720379,1586.1,1585.9,6.9673375]
[1674019964971,0.00720379,1586.1,1586.0,0.69673375]
[1674019965153,0.00720379,1586.1,1586.0,3.07573375]
[1674019969737,12.67427,1586.3,1586.0,3.07573375]
[1674019969987,3.11662407,1586.2,1586.1,1.184]
[1674019972153,0.066,1586.3,1586.1,2.379]
[1674019972418,3.18262407,1586.3,1586.2,2.6279]
[1674019975130,3.11662407,1586.3,1586.2,2.6279]
[1674019977573,3.11662407,1586.3,1586.2,1.4329]
[1674019977779,3.11662407,1586.3,1586.2,1.195]
[1674019978111,3.11662407,1586.3,1586.1,1.259]
[1674019978414,9.42059407,1586.3,1586.1,1.259]
[1674019979045,3.11662407,1586.3,1586.1,1.259]
[1674019983713,3.11662407,1586.3,1586.1,1.193]
[1674019984772,3.11662407,1586.3,1586.1,1.18936621]
[1674019992958,3.11662407,1586.3,1586.0,16.28460998]
[1674019994382,3.11662407,1586.3,1586.0,19.17416398]
[1674020002372,3.11662407,1586.3,1586.0,20.81653791]
[1674020004418,3.11662407,1586.3,1586.1,1.09491786]
[1674020004893,3.11662407,1586.3,1586.0,16.28460998]
[1674020005085,3.11662407,1586.3,1586.0,9.97944998]
[1674020005086,9.42072407,1586.3,1586.0,9.97944998]
[1674020005260,12.42413773,1586.3,1586.0,9.97944998]
[1674020007164,13.41686577,1586.3,1586.0,9.97944998]
[1674020007824,13.41288325,1586.3,1586.0,9.97944998]
[1674020008036,13.41288325,1586.3,1586.0,8.79544998]
[1674020009801,3.77844157,1586.2,1586.0,8.7685]
[1674020010059,5.75052515,1586.2,1586.0,8.7685]
[1674020010256,2.03808358,1586.2,1586.0,0.066]
[1674020010475,3.77844157,1586.1,1585.8,10.69192977]
[1674020010632,9.42179407,1586.0,1585.8,10.69192977]
[1674020010843,9.48779407,1586.0,1585.8,10.69192977]
[1674020011907,11.90584323,1586.0,1585.8,10.69192977]
[1674020012133,3.11662407,1585.9,1585.8,10.69192977]
[1674020012376,15.72774407,1585.9,1585.8,10.69192977]
[1674020012686,9.48818407,1585.9,1585.8,10.69192977]
[1674020012826,9.48818407,1585.9,1585.8,0.16332977]
[1674020013041,10.63158381,1585.9,1585.8,0.09732977]
[1674020013731,16.93714381,1585.9,1585.8,0.09732977]
[1674020014306,24.66770381,1585.9,1585.8,0.09732977]
[1674020019454,25.86270381,1585.9,1585.8,0.09732977]
[1674020021464,0.066,1585.9,1585.8,1.19532977]
[1674020021680,0.066,1586.0,1585.8,1.19532977]
[1674020021917,3.11662407,1586.0,1585.8,1.19532977]
[1674020028393,3.11662407,1586.0,1585.8,0.09732977]
[1674020028601,3.11662407,1585.9,1585.8,0.09732977]
[1674020028862,18.16096848,1585.9,1585.8,0.09519889]
[1674020029084,18.22696848,1585.9,1585.8,0.09519889]
[1674020029901,24.53252848,1585.9,1585.8,0.09519889]
[1674020033983,26.92252848,1585.9,1585.8,0.09519889]
[1674020036410,23.80590441,1585.9,1585.8,0.09519889]
[1674020036749,9.48818407,1585.9,1585.8,0.09519889]
[1674020038269,9.71818407,1585.9,1585.8,0.09519889]
[1674020048623,9.71432194,1585.9,1585.8,0.09519889]
[1674020050478,13.2709575,1586.2,1585.9,1.10594262]
[1674020050685,3.11662407,1586.2,1585.9,13.71663262]
[1674020050900,3.11662407,1586.2,1586.0,1.37166326]
[1674020065273,3.11662407,1586.2,1586.0,7.67673326]
[1674020068270,0.066,1586.3,1586.0,13.98190326]
[1674020068482,3.18262407,1586.3,1586.0,13.98190326]
[1674020068636,3.11662407,1586.3,1586.1,1.39819033]
[1674020070110,3.11662407,1586.3,1586.0,6.37107]
[1674020071740,8.0001,1586.4,1586.0,18.98141]
[1674020071894,11.11672407,1586.4,1586.0,18.98141]
[1674020075373,11.11672407,1586.4,1586.0,18.97925629]
[1674020077462,11.11672407,1586.4,1586.0,6.36891629]
[1674020077665,26.19398373,1586.4,1586.0,0.066]
[1674020078554,3.11662407,1586.3,1586.0,0.066]
[1674020079506,9.42081407,1586.3,1586.0,0.066]
[1674020080295,3.11662407,1586.2,1586.0,0.066]
[1674020083193,9.42139407,1586.1,1586.0,0.066]
[1674020083406,17.92918348,1586.1,1586.0,0.066]
[1674020083600,18.15918348,1586.1,1586.0,0.066]
[1674020084014,18.15918348,1586.1,1585.8,20.04019889]
[1674020084015,18.22518348,1586.1,1585.8,20.04019889]
[1674020084350,9.42194407,1586.0,1585.8,11.64509889]
[1674020084926,3.11662407,1585.9,1585.8,0.16119889]
[1674020085346,10.99491648,1585.9,1585.8,0.16119889]
[1674020087483,17.30047648,1585.9,1585.8,0.16119889]
[1674020087846,23.83603648,1585.9,1585.8,0.16119889]
[1674020089383,23.90203648,1585.9,1585.8,0.09519889]
[1674020089876,25.98985398,1585.9,1585.8,0.09519889]
[1674020090089,25.32803648,1585.9,1585.8,0.09519889]
[1674020098832,25.32803648,1585.9,1585.8,0.09227535]
[1674020099339,25.98985398,1585.9,1585.8,0.09227535]
[1674020100181,25.32803648,1585.9,1585.8,0.09227535]
[1674020103340,23.90203648,1585.9,1585.8,0.09227535]
[1674020105919,22.32930407,1585.9,1585.8,0.09227535]
[1674020106649,3.18262407,1585.9,1585.8,1.19027535]
[1674020107026,3.18262407,1585.9,1585.8,0.09227535]
[1674020107233,9.48818407,1585.9,1585.8,0.09227535]
[1674020108296,9.71818407,1585.9,1585.8,0.09227535]
[1674020108625,11.95108648,1585.9,1585.8,0.09227535]
[1674020115368,9.71818407,1585.9,1585.8,0.09227535]
[1674020124131,10.38000157,1585.9,1585.8,0.09227535]
[1674020124696,9.71818407,1585.9,1585.8,0.09227535]
[1674020125058,10.38000157,1585.9,1585.8,0.09227535]
[1674020125269,9.71818407,1585.9,1585.8,0.09227535]
[1674020125589,12.11654103,1585.9,1585.8,0.09227535]
[1674020126650,14.78170751,1586.3,1586.0,1.16796294]
[1674020126651,6.63773554,1586.3,1586.0,1.16796294]
[1674020126856,7.35580424,1586.4,1586.0,1.16796294]
[1674020127106,13.65942424,1586.4,1586.0,1.16796294]
[1674020127679,12.66724,1586.4,1586.0,2.36396294]
[1674020128061,12.66724,1586.4,1586.1,0.23639629]
[1674020128626,3.11662407,1586.3,1586.1,0.23639629]
[1674020130129,4.11662407,1586.3,1586.1,0.23639629]
[1674020130336,3.11662407,1586.3,1586.1,0.23639629]
[1674020132671,3.11662407,1586.3,1586.2,0.3013959]
[1674020138139,0.066,1586.4,1586.2,0.3013959]
[1674020138296,3.12262407,1586.4,1586.2,0.98565012]
[1674020139400,3.12262407,1586.4,1586.2,7.28999012]
[1674020140399,3.12262407,1586.4,1586.2,8.48099012]
[1674020140609,3.12262407,1586.4,1586.3,0.84809901]
[1674020144761,3.11951332,1586.4,1586.3,0.84809901]
[1674020145253,3.11662407,1586.4,1586.3,0.84809901]
[1674020148663,0.06488925,1586.5,1586.3,0.84809901]
[1674020148822,3.18151332,1586.5,1586.3,7.15196901]
[1674020149278,3.18151332,1586.5,1586.4,0.7151969]
[1674020149604,0.06488925,1586.5,1586.4,0.7151969]
[1674020150138,6.45520511,1586.7,1586.4,0.7151969]
[1674020150292,3.11662407,1586.6,1586.4,0.7151969]
[1674020152742,0.15272511,1586.7,1586.4,13.3223469]
[1674020152960,0.15272511,1586.7,1586.5,2.52823469]
[1674020152961,3.26934918,1586.7,1586.5,2.52823469]
[1674020153495,3.26934918,1586.7,1586.5,8.83140469]
[1674020153709,3.20445993,1586.7,1586.5,8.89740469]
[1674020153904,3.20445993,1586.7,1586.6,0.88974047]
[1674020154292,3.20445993,1586.7,1586.5,2.59423469]
[1674020154526,3.20445993,1586.7,1586.5,1.39823469]
[1674020154930,4.11662407,1586.6,1586.5,0.066]
[1674020155503,4.11662407,1586.6,1586.5,0.002]
[1674020155688,3.11662407,1586.6,1586.3,9.0837]
[1674020159077,3.11662407,1586.5,1586.3,9.0837]
[1674020159441,9.41990407,1586.5,1586.3,9.0837]
[1674020159861,9.41990407,1586.5,1586.3,0.066]
[1674020160487,9.47990407,1586.5,1586.3,0.004]
[1674020160763,9.48479332,1586.5,1586.2,10.8297959]
[1674020161277,9.48479332,1586.5,1586.2,14.06570349]
[1674020163750,15.78807332,1586.5,1586.2,10.8297959]
[1674020165729,9.48479332,1586.5,1586.2,10.8297959]
[1674020167825,10.14418855,1586.5,1586.2,10.8297959]
[1674020168770,9.48479332,1586.5,1586.2,10.8297959]
[1674020169372,9.48479332,1586.5,1586.0,1.16796294]
[1674020169373,3.11662407,1586.3,1586.0,1.16796294]
[1674020169598,0.66092142,1586.1,1586.0,1.16796294]
[1674020169826,22.69185549,1586.1,1586.0,1.16796294]
[1674020170148,27.68403973,1586.1,1586.0,1.16796294]
[1674020170350,31.08478869,1586.1,1586.0,1.16796294]
[1674020170665,31.08478869,1586.1,1585.8,0.09227535]
[1674020170666,1.0,1586.0,1585.8,0.09227535]
[1674020170819,23.54830407,1585.9,1585.8,0.09227535]
[1674020171222,29.85386407,1585.9,1585.8,0.09227535]
[1674020172606,23.54830407,1585.9,1585.8,0.09227535]
[1674020172820,22.36330407,1585.9,1585.8,0.09227535]
[1674020173824,22.42819332,1585.9,1585.8,0.09227535]
[1674020177652,22.42819332,1585.9,1585.8,0.366044]
[1674020178126,22.32819332,1585.9,1585.8,0.366044]
[1674020186673,16.02263332,1585.9,1585.8,0.366044]
[1674020187462,9.71707332,1585.9,1585.8,0.366044]
[1674020191807,16.02263332,1585.9,1585.8,0.366044]
[1674020192719,23.75819332,1585.9,1585.8,0.366044]
[1674020192927,27.89365065,1585.9,1585.8,0.366044]
[1674020193281,28.87851316,1585.9,1585.8,0.366044]
[1674020193497,28.87851316,1585.9,1585.8,0.36373838]
[1674020194402,27.89365065,1585.9,1585.8,0.36373838]
[1674020196648,36.89365065,1585.9,1585.8,0.36373838]
[1674020216932,35.46365065,1585.9,1585.8,0.36373838]
[1674020221727,36.12462234,1585.9,1585.8,0.36373838]
[1674020223930,37.31662234,1585.9,1585.8,0.36373838]
[1674020224398,41.80015117,1585.9,1585.8,0.36012607]
[1674020224614,40.97594085,1585.9,1585.8,0.36012607]
[1674020225133,43.15862246,1585.9,1585.8,0.36012607]
[1674020225501,41.30835886,1585.9,1585.8,0.36012607]
[1674020225710,40.31667725,1585.9,1585.8,0.36012607]
[1674020225970,41.30835886,1585.9,1585.8,0.36012607]
[1674020227891,40.64733226,1585.9,1585.8,0.36012607]
[1674020228061,31.9892489,1585.9,1585.8,0.36012607]
[1674020230973,42.43937545,1585.9,1585.8,0.00012607]
[1674020231238,46.05124985,1585.9,1585.8,0.00012607]
[1674020231463,45.41733039,1585.9,1585.8,0.00012607]
[1674020231664,45.41735085,1585.9,1585.8,0.00012607]
[1674020231827,49.43738139,1585.9,1585.8,0.00012607]
[1674020232195,47.78417591,1585.9,1585.8,0.00012607]
[1674020232736,49.13336099,1585.9,1585.8,0.00012607]
[1674020232887,48.98117591,1585.9,1585.8,0.00012607]
[1674020234976,49.97238718,1585.9,1585.8,0.00012607]
[1674020235324,49.33564545,1585.9,1585.8,0.00012607]
[1674020235530,46.81671088,1585.9,1585.8,0.00012607]
[1674020237494,42.70325963,1585.9,1585.8,0.00012607]
[1674020238561,43.03371088,1585.9,1585.8,0.00012607]
[1674020239808,43.6945176,1585.9,1585.8,0.00012607]
[1674020240543,43.03371088,1585.9,1585.8,0.00012607]
[1674020241016,48.13864545,1585.9,1585.8,0.00012607]
[1674020241225,48.13856457,1585.9,1585.8,0.00012607]
[1674020241434,46.81663,1585.9,1585.8,0.00012607]
[1674020241584,48.01363,1585.9,1585.8,0.00012607]
[1674020242960,46.82163,1585.9,1585.8,0.00012607]
[1674020243417,48.7803063,1585.9,1585.8,0.00012607]
[1674020243605,47.78917591,1585.9,1585.8,0.00012607]
[1674020249043,47.15243418,1585.9,1585.8,0.00012607]
[1674020249300,47.78917591,1585.9,1585.8,0.00012607]
[1674020252676,48.78029631,1585.9,1585.8,0.00012607]
[1674020253043,47.78917591,1585.9,1585.8,0.00012607]
[1674020253513,48.78062801,1585.9,1585.8,0.00012607]
[1674020253724,1.15351584,1585.8,1585.7,0.08366204]
[1674020253938,26.05416198,1585.8,1585.7,0.08366204]
[1674020254248,26.11905123,1585.8,1585.7,0.08366204]
[1674020255041,27.11050333,1585.8,1585.7,0.08366204]
[1674020255935,30.89350333,1585.8,1585.7,0.08366204]
[1674020256129,30.2325212,1585.8,1585.7,0.08366204]
[1674020265257,30.56300367,1585.8,1585.7,0.08366204]
[1674020265887,30.55520371,1585.8,1585.7,0.08366204]
[1674020266101,24.4751092,1585.8,1585.7,0.08366204]
[1674020267911,23.3251092,1585.8,1585.7,0.08366204]
[1674020268242,22.99437911,1585.8,1585.7,0.08366204]
[1674020269590,23.98657915,1585.8,1585.7,0.08366204]
[1674020271285,23.98676507,1585.8,1585.7,0.08366204]
[1674020273293,28.34819183,1585.8,1585.7,0.08366204]
[1674020275218,28.34819183,1585.8,1585.7,0.08131328]
[1674020278308,23.98676587,1585.8,1585.7,0.08131328]
[1674020279147,23.3251092,1585.8,1585.7,0.08131328]
[1674020279379,23.32159336,1585.8,1585.7,0.08131328]
[1674020279934,16.02343332,1585.8,1585.7,0.08131328]
[1674020287694,9.71747332,1585.8,1585.7,0.08131328]
[1674020287904,3.41151332,1585.8,1585.7,0.08131328]
[1674020288117,3.18151332,1585.8,1585.7,0.08131328]
[1674020288304,3.18151332,1585.8,1585.7,1.51031328]
[1674020288501,0.06488925,1585.8,1585.7,4.20397423]
[1674020288883,1e-08,1585.8,1585.7,23.78400602]
[1674020290011,1e-08,1585.8,1585.7,23.12305423]
[1674020290745,1e-08,1585.8,1585.7,23.78400602]
[1674020291542,1e-08,1585.8,1585.7,23.12305423]
[1674020291755,1e-08,1585.8,1585.7,23.15014338]
[1674020292090,9.01200001,1585.9,1585.8,7.73496]
[1674020292316,9.01200001,1585.9,1585.8,11.64243434]
[1674020294904,9.01200001,1585.9,1585.8,10.21343434]
[1674020295663,9.06400001,1585.9,1585.8,10.26543434]
[1674020296903,0.06400001,1585.9,1585.8,10.26543434]
[1674020298018,0.06400001,1585.9,1585.8,16.57139434]
[1674020300521,3.2,1586.0,1585.8,16.8312018]
[1674020300698,3.2,1586.0,1585.9,3.11212018]
[1674020302526,3.2,1586.0,1585.9,9.41768018]
[1674020302757,3.2,1586.0,1585.9,9.48368018]
[1674020309082,2.03198688,1586.0,1585.9,8.05468018]
[1674020310644,2.03198688,1586.0,1585.9,22.09480018]
[1674020311399,2.03198688,1586.0,1585.9,23.18971267]
[1674020312440,2.03198688,1586.0,1585.9,22.09480018]
[1674020312892,2.03198688,1586.0,1585.9,23.18971366]
[1674020313199,0.71098688,1586.0,1585.9,30.34058814]
[1674020313410,0.06400001,1586.2,1586.0,5.0747409]
[1674020313559,0.06400001,1586.2,1586.1,35.97088682]
[1674020313774,0.06400001,1586.2,1586.1,37.61603783]
[1674020313986,0.06400001,1586.2,1586.1,35.97365569]
[1674020314563,0.14285104,1586.6,1586.1,38.25243425]
[1674020314781,0.14285104,1586.6,1586.5,1.429]
[1674020314992,0.14285104,1586.6,1586.3,7.73282]
[1674020314993,3.25947511,1586.6,1586.3,7.73282]
[1674020315306,3.11662407,1586.5,1586.3,0.002]
[1674020315455,3.11662407,1586.4,1586.3,0.002]
[1674020318458,3.11662407,1586.4,1586.3,1.487]
[1674020319078,3.11662407,1586.4,1586.3,0.002]
[1674020320936,3.11662407,1586.4,1586.1,12.66754]
[1674020321146,3.11662407,1586.4,1586.1,17.97164321]
[1674020334945,3.11662407,1586.4,1586.2,1.191]
[1674020335121,3.11662407,1586.4,1586.2,7.49536]
[1674020337347,3.11662407,1586.4,1586.2,6.30436]
[1674020344139,3.82580945,1586.5,1586.2,6.30436]
[1674020344348,6.28062407,1586.5,1586.2,20.59062332]
[1674020346249,6.28062407,1586.5,1586.2,20.64062332]
[1674020346450,6.28062407,1586.5,1586.2,20.64862332]
[1674020347453,3.164,1586.5,1586.2,21.84462332]
[1674020347676,3.16138528,1586.5,1586.3,2.18446233]
[1674020347837,3.16138528,1586.5,1586.3,14.79195233]
[1674020350949,3.102,1586.5,1586.3,14.84995233]
[1674020351520,3.102,1586.5,1586.3,22.58192233]
[1674020354588,3.102,1586.5,1586.4,1.09466637]
[1674020354816,3.102,1586.5,1586.4,21.17808069]
[1674020355459,3.102,1586.5,1586.4,20.14141432]
[1674020357778,3.102,1586.5,1586.4,21.23608215]
[1674020358662,3.102,1586.5,1586.4,20.14141432]
[1674020360510,1.93236418,1586.5,1586.4,21.2360729]
[1674020360869,1.93236418,1586.5,1586.4,21.23607621]
[1674020361084,1.93236418,1586.5,1586.4,20.14141432]
[1674020365187,1.93236418,1586.5,1586.4,22.66306635]
[1674020365448,1.93236418,1586.5,1586.4,22.99441432]
[1674020365603,1.93236418,1586.5,1586.4,24.08899323]
[1674020365819,1.93236418,1586.5,1586.4,24.74699776]
[1674020366604,1.93236418,1586.5,1586.4,24.74333478]
[1674020367627,0.08285104,1586.6,1586.4,24.74333478]
[1674020367834,0.08285104,1586.6,1586.5,22.81187348]
[1674020368046,0.08285104,1586.6,1586.5,22.86987348]
[1674020369032,0.08285104,1586.6,1586.5,21.44187348]
[1674020369862,0.08285104,1586.6,1586.5,25.59316633]
[1674020370020,0.08285104,1586.6,1586.5,29.38416678]
[1674020370235,0.08285104,1586.6,1586.5,28.59316633]
[1674020374180,0.08285104,1586.6,1586.5,26.95139201]
[1674020374766,0.08285104,1586.6,1586.5,28.59316368]
[1674020375446,0.08285104,1586.6,1586.5,26.95139201]
[1674020376505,0.08285104,1586.6,1586.5,26.95139274]
[1674020377024,0.08285104,1586.6,1586.5,28.59311738]
[1674020377916,1.98285104,1586.6,1586.5,26.95139274]
[1674020379146,1.98285104,1586.6,1586.5,28.59313075]
[1674020379441,1.98285104,1586.6,1586.5,26.95139274]
[1674020379917,1.98285104,1586.6,1586.5,28.59313455]
[1674020380493,0.81538833,1586.6,1586.5,28.59860604]
[1674020380709,0.81538833,1586.6,1586.5,26.95686423]
[1674020382750,0.81538833,1586.6,1586.5,28.59859368]
[1674020383415,0.81538833,1586.6,1586.5,28.36759368]
[1674020386152,0.81538833,1586.6,1586.5,29.02559821]
[1674020388458,0.81538833,1586.6,1586.5,34.00279689]
[1674020388799,0.08783586,1586.7,1586.6,20.84396309]
[1674020389014,0.08783586,1586.7,1586.6,33.27859411]
[1674020389167,0.08783586,1586.7,1586.6,32.93629403]
[1674020389371,0.08783586,1586.7,1586.6,32.27859411]
[1674020390170,0.08783586,1586.7,1586.6,30.63686466]
[1674020391060,0.08783586,1586.7,1586.6,29.5423454]
[1674020391270,0.08783586,1586.7,1586.6,30.63680829]
[1674020392473,0.08783586,1586.7,1586.6,30.6368152]
[1674020392871,0.08783586,1586.7,1586.6,30.6368163]
[1674020393425,0.08783586,1586.7,1586.6,30.63681292]
[1674020399049,0.08783586,1586.7,1586.6,29.44781292]
[1674020399253,0.08783586,1586.7,1586.6,31.08952611]
[1674020400552,0.87717841,1586.8,1586.6,31.08952611]
[1674020400728,0.87717841,1586.8,1586.7,3.10895261]
[1674020400933,0.87717841,1586.8,1586.7,22.01609261]
[1674020401149,0.87717841,1586.8,1586.7,22.07409261]
[1674020401360,0.07717841,1586.8,1586.7,23.16853195]
[1674020402770,0.07717841,1586.8,1586.7,24.81013011]
[1674020403356,0.07717841,1586.8,1586.7,25.46783003]
[1674020403618,0.07717841,1586.8,1586.7,24.81013011]
[1674020404665,0.07717841,1586.8,1586.7,27.65325772]
[1674020404885,0.07717841,1586.8,1586.7,31.1905578]
[1674020406096,0.07717841,1586.8,1586.7,31.84918694]
[1674020406325,0.07717841,1586.8,1586.7,31.1905578]
[1674020406967,0.07717841,1586.8,1586.7,31.84919072]
[1674020407172,0.07717841,1586.8,1586.7,31.1905578]
[1674020408251,0.07717841,1586.8,1586.7,31.84913532]
[1674020413164,0.07717841,1586.8,1586.7,30.85770763]
[1674020413414,0.07717841,1586.8,1586.7,31.84913532]
[1674020414129,0.07717841,1586.8,1586.7,31.1905578]
[1674020414841,0.07717841,1586.8,1586.7,29.9965578]
[1674020415615,0.07717841,1586.8,1586.7,30.8852614]
[1674020416038,0.07717841,1586.8,1586.7,29.89383371]
[1674020416946,0.07717841,1586.8,1586.7,30.8852614]
[1674020417484,0.07717841,1586.8,1586.7,28.69883371]
[1674020420328,0.07717841,1586.8,1586.7,29.6902614]
[1674020420613,8.05594164,1586.9,1586.7,29.6902614]
[1674020420857,8.05594164,1586.9,1586.8,25.96943548]
[1674020421049,8.05594164,1586.9,1586.8,27.66903364]
[1674020421488,8.05594164,1586.9,1586.8,28.32736614]
[1674020423764,8.05594164,1586.9,1586.8,25.35834]
[1674020424139,9.24094164,1586.9,1586.8,0.058]
[1674020424299,9.24094164,1586.9,1586.8,6.30199]
[1674020424516,9.24094164,1586.9,1586.8,6.35999]
[1674020424742,10.29377592,1586.9,1586.8,6.35999]
[1674020427342,10.29377592,1586.9,1586.8,0.058]
[1674020427707,10.29377592,1586.9,1586.7,6.5907511]
[1674020427939,2.385,1586.8,1586.7,0.2883711]
[1674020428125,3.84604,1586.8,1586.7,0.2303711]
[1674020431227,4.84604,1586.8,1586.7,0.2303711]
[1674020431437,3.84604,1586.8,1586.7,0.2303711]
[1674020431914,4.84604,1586.8,1586.7,0.2303711]
[1674020432598,3.84604,1586.8,1586.7,0.2303711]
[1674020433382,2.385,1586.8,1586.7,6.5327511]
[1674020433534,2.385,1586.8,1586.7,6.5907511]
[1674020437361,2.385,1586.8,1586.7,0.2883711]
[1674020437570,3.385,1586.8,1586.7,0.2303711]
[1674020437789,4.94604,1586.8,1586.7,0.2303711]
[1674020438850,3.94604,1586.8,1586.7,0.2303711]
[1674020439385,4.94604,1586.8,1586.7,0.2303711]
[1674020440668,3.94604,1586.8,1586.7,0.22797655]
[1674020448449,3.94604,1586.8,1586.7,0.04597655]
[1674020451366,2.385,1586.8,1586.7,0.04597655]
[1674020452006,1.21759382,1586.8,1586.7,0.04597655]
[1674020452213,1.21759382,1586.8,1586.7,1.14041852]
[1674020453382,1.21759382,1586.8,1586.7,7.44279852]
[1674020453597,1.21759382,1586.8,1586.7,7.50079852]
[1674020454871,1.21759382,1586.8,1586.7,6.40635655]
[1674020457237,1.21759382,1586.8,1586.7,0.10397655]
[1674020457620,12.36156571,1586.9,1586.7,0.04597655]
[1674020457784,14.42276434,1586.9,1586.7,0.04597655]
[1674020462233,12.36156571,1586.9,1586.7,0.04597655]
[1674020462548,12.36156571,1586.9,1586.7,6.34832655]
[1674020462738,12.36156571,1586.9,1586.7,6.40632655]
[1674020462928,1.185,1586.8,1586.7,6.40632655]
[1674020463197,1.185,1586.8,1586.7,7.50079006]
[1674020472595,0.017581,1586.8,1586.7,7.50079006]
[1674020472814,0.01548978,1586.8,1586.7,7.50079006]